bitfinex/quotes_BTCUSD_20230106
["timestamp","ask_amount","ask_price","bid_price","bid_amount"]
[1673042403064,0.09849297,16937.0,16936.0,3.80883348]
[1673042404861,0.09849297,16937.0,16936.0,3.51362348]
[1673042405482,0.09849297,16937.0,16936.0,3.92646258]
[1673042405915,0.09849297,16937.0,16936.0,3.62206474]
[1673042406586,0.09849297,16937.0,16936.0,3.3570831]
[1673042407238,0.09849297,16937.0,16936.0,3.62206474]
[1673042407461,0.09849297,16937.0,16936.0,3.3570831]
[1673042409034,0.09849297,16937.0,16936.0,2.95056143]
[1673042413741,0.09349297,16937.0,16936.0,2.95056143]
[1673042413992,0.08849297,16937.0,16936.0,2.95056143]
[1673042414481,0.08849297,16937.0,16936.0,3.18540721]
[1673042414730,0.08849297,16937.0,16936.0,2.92042557]
[1673042415240,0.08849297,16937.0,16936.0,3.77928434]
[1673042415983,0.08849297,16937.0,16936.0,4.14395833]
[1673042416203,0.08849297,16937.0,16936.0,4.13895833]
[1673042417006,0.08849297,16937.0,16936.0,3.54931777]
[1673042417486,0.08849297,16937.0,16936.0,4.07501127]
[1673042417734,0.08849297,16937.0,16936.0,3.54931777]
[1673042417983,0.08849297,16937.0,16936.0,3.90251556]
[1673042418486,0.08849297,16937.0,16936.0,3.89751556]
[1673042418976,0.08849297,16937.0,16936.0,3.92118255]
[1673042419227,0.08849297,16937.0,16936.0,4.39298529]
[1673042419461,0.00808394,16938.0,16936.0,4.79751556]
[1673042419720,0.00808394,16938.0,16937.0,3.19461607]
[1673042419967,0.00808394,16938.0,16937.0,4.37546207]
[1673042420219,0.00308394,16938.0,16937.0,4.01078808]
[1673042420933,0.00308394,16938.0,16937.0,4.06978808]
[1673042421193,0.01508394,16938.0,16937.0,4.43453755]
[1673042421735,0.01508394,16938.0,16937.0,5.01767585]
[1673042421988,0.01508394,16938.0,16937.0,4.43453755]
[1673042422710,0.01508394,16938.0,16937.0,4.61130117]
[1673042422943,0.01508394,16938.0,16937.0,5.29511661]
[1673042423194,0.01508394,16938.0,16937.0,5.11828152]
[1673042424214,0.00508394,16938.0,16937.0,5.11828152]
[1673042426679,0.00508394,16938.0,16937.0,4.43446608]
[1673042427167,0.00508394,16938.0,16937.0,5.13926819]
[1673042427624,0.00508394,16938.0,16937.0,4.43446608]
[1673042428449,0.00841624,16939.0,16937.0,5.33577983]
[1673042428690,0.00841624,16939.0,16938.0,0.7100903]
[1673042428984,0.00841624,16939.0,16938.0,2.1993663]
[1673042429255,0.00841624,16939.0,16938.0,2.46438061]
[1673042429496,0.00841624,16939.0,16938.0,2.75957061]
[1673042429741,0.01941624,16939.0,16938.0,3.13131094]
[1673042429997,0.01941624,16939.0,16938.0,3.34843466]
[1673042430252,0.01941624,16939.0,16938.0,3.08342035]
[1673042430469,0.00841624,16939.0,16938.0,3.11384512]
[1673042430693,0.01941624,16939.0,16938.0,3.18384512]
[1673042431689,0.01941624,16939.0,16938.0,3.44885943]
[1673042432221,0.01941624,16939.0,16938.0,3.15342035]
[1673042432462,0.01941624,16939.0,16938.0,3.15365446]
[1673042432948,0.01941624,16939.0,16938.0,3.41866877]
[1673042434164,0.01941624,16939.0,16938.0,3.02980472]
[1673042434400,0.01941624,16939.0,16938.0,3.40225207]
[1673042434905,0.01941624,16939.0,16938.0,3.57917958]
[1673042435158,0.01941624,16939.0,16938.0,4.27917958]
[1673042435688,0.01941624,16939.0,16938.0,4.64310525]
[1673042435965,0.01941624,16939.0,16938.0,4.00564359]
[1673042436200,0.01941624,16939.0,16938.0,3.49523177]
[1673042436442,0.01941624,16939.0,16938.0,3.73143426]
[1673042436680,0.01941624,16939.0,16938.0,2.79523177]
[1673042436937,0.01941624,16939.0,16938.0,3.64914847]
[1673042437172,0.01941624,16939.0,16938.0,3.43282679]
[1673042437416,0.01941624,16939.0,16938.0,3.40240202]
[1673042439329,0.01941624,16939.0,16938.0,3.92898543]
[1673042439992,0.01941624,16939.0,16938.0,3.40240202]
[1673042441465,0.01941624,16939.0,16938.0,4.10240202]
[1673042444428,0.01941624,16939.0,16938.0,4.650384]
[1673042444656,0.01941624,16939.0,16938.0,4.10240202]
[1673042445651,0.01941624,16939.0,16938.0,4.81484907]
[1673042447543,0.01941624,16939.0,16938.0,4.11484907]
[1673042448554,0.01941624,16939.0,16938.0,5.1682889]
[1673042449263,0.01941624,16939.0,16938.0,4.99175999]
[1673042449513,0.01941624,16939.0,16938.0,5.16841581]
[1673042449805,0.01941624,16939.0,16938.0,5.16841551]
[1673042450053,0.01941624,16939.0,16938.0,4.99175999]
[1673042450483,0.01941624,16939.0,16938.0,4.27931294]
[1673042451624,0.01931974,16939.0,16938.0,4.27931294]
[1673042454094,0.01931974,16939.0,16938.0,4.97557172]
[1673042454336,0.01931974,16939.0,16938.0,4.27943902]
[1673042454591,0.01931974,16939.0,16938.0,4.02081699]
[1673042454869,0.01931974,16939.0,16938.0,4.13636579]
[1673042455385,0.01931974,16939.0,16938.0,4.27943902]
[1673042455620,0.01931974,16939.0,16938.0,4.72081699]
[1673042455879,0.01931974,16939.0,16938.0,4.84368709]
[1673042456143,0.01931974,16939.0,16938.0,4.83066849]
[1673042456387,0.01931974,16939.0,16938.0,5.27213591]
[1673042456645,0.01931974,16939.0,16938.0,5.00690607]
[1673042457152,0.01931974,16939.0,16938.0,4.4556766]
[1673042457656,0.01931974,16939.0,16938.0,4.96627908]
[1673042461502,0.01931974,16939.0,16938.0,4.26627908]
[1673042462563,0.01931974,16939.0,16938.0,4.96627908]
[1673042463558,0.01931974,16939.0,16938.0,4.4556766]
[1673042464066,0.01931974,16939.0,16938.0,4.10223677]
[1673042465546,0.01931974,16939.0,16938.0,4.69586472]
[1673042465797,0.01931974,16939.0,16938.0,4.10223677]
[1673042466045,0.01931974,16939.0,16938.0,4.63356458]
[1673042466534,0.01931974,16939.0,16938.0,4.10223677]
[1673042467255,0.01931974,16939.0,16938.0,4.68328868]
[1673042468006,0.01931974,16939.0,16938.0,4.68327868]
[1673042468505,0.00931139,16940.0,16938.0,3.98327868]
[1673042468722,0.00931139,16940.0,16939.0,3.06261668]
[1673042468969,0.00931139,16940.0,16939.0,4.24332268]
[1673042469692,0.00931139,16940.0,16939.0,4.77601893]
[1673042470012,0.01931139,16940.0,16939.0,4.85601893]
[1673042470741,0.00931139,16940.0,16939.0,4.77601893]
[1673042470982,0.01831139,16940.0,16939.0,4.85601893]
[1673042479712,0.01831139,16940.0,16939.0,5.0319782]
[1673042479957,0.01831139,16940.0,16939.0,5.2319782]
[1673042482454,1.69845128,16942.0,16939.0,5.2319782]
[1673042482725,1.69845128,16942.0,16940.0,0.96548907]
[1673042482960,1.24542189,16942.0,16941.0,2.669632]
[1673042483406,0.89185669,16942.0,16941.0,2.669632]
[1673042483666,0.61872189,16942.0,16941.0,2.669632]
[1673042483912,0.61872189,16942.0,16941.0,3.20476552]
[1673042484158,0.62772189,16942.0,16941.0,3.71079098]
[1673042485861,0.62772189,16942.0,16941.0,3.71102311]
[1673042486358,0.62772189,16942.0,16941.0,3.71079098]
[1673042487100,0.62772189,16942.0,16941.0,3.71102311]
[1673042487367,0.62772189,16942.0,16941.0,3.71079098]
[1673042487620,0.62772189,16942.0,16941.0,3.29376552]
[1673042488912,1.06973871,16942.0,16941.0,3.29376552]
[1673042489412,1.07028596,16942.0,16941.0,3.29376552]
[1673042489896,0.62826914,16942.0,16941.0,3.29376552]
[1673042491169,0.62826914,16942.0,16941.0,3.62204889]
[1673042491911,0.80236914,16942.0,16941.0,3.62204889]
[1673042497890,0.97950001,16942.0,16941.0,3.62204889]
[1673042499642,0.80236914,16942.0,16941.0,3.62204889]
[1673042500996,0.97949994,16942.0,16941.0,3.62204889]
[1673042501221,0.62593474,16942.0,16941.0,3.62204889]
[1673042503697,0.62593474,16942.0,16941.0,3.29376552]
[1673042503916,0.97949994,16942.0,16941.0,3.29376552]
[1673042504177,0.80236914,16942.0,16941.0,3.29376552]
[1673042505167,0.9794941,16942.0,16941.0,3.29376552]
[1673042505431,0.6259289,16942.0,16941.0,3.29376552]
[1673042505656,0.9794941,16942.0,16941.0,3.29376552]
[1673042505908,0.80236914,16942.0,16941.0,3.29376552]
[1673042507265,0.80236914,16942.0,16941.0,3.74083372]
[1673042507529,0.62592631,16942.0,16941.0,3.74083372]
[1673042508197,0.80236914,16942.0,16941.0,3.29376552]
[1673042510676,0.80236914,16942.0,16941.0,3.29399765]
[1673042511398,0.80236914,16942.0,16941.0,3.29376552]
[1673042512557,0.88673163,16942.0,16941.0,3.29376552]
[1673042513252,1.31978419,16942.0,16941.0,3.29376552]
[1673042513494,0.88672065,16942.0,16941.0,3.29376552]
[1673042516207,0.88660366,16942.0,16941.0,3.29376552]
[1673042516483,0.88660366,16942.0,16941.0,3.63426024]
[1673042517405,0.71015542,16942.0,16941.0,3.63426024]
[1673042518243,1.06372062,16942.0,16941.0,3.63426024]
[1673042518496,0.71015542,16942.0,16941.0,3.63426024]
[1673042518782,1.06372062,16942.0,16941.0,3.63426024]
[1673042518984,0.71015542,16942.0,16941.0,3.63426024]
[1673042520257,0.88660366,16942.0,16941.0,3.63426024]
[1673042520900,1.06372092,16942.0,16941.0,3.63426024]
[1673042521106,0.88660366,16942.0,16941.0,3.63426024]
[1673042521323,0.71015569,16942.0,16941.0,3.63426024]
[1673042524762,0.43946273,16942.0,16941.0,3.81117674]
[1673042525003,0.43946273,16942.0,16941.0,3.63426024]
[1673042530043,0.2623455,16942.0,16941.0,3.81117674]
[1673042530254,0.43946273,16942.0,16941.0,3.63426024]
[1673042531822,0.26536273,16942.0,16941.0,3.63426024]
[1673042537323,0.0882455,16942.0,16941.0,3.81117674]
[1673042537587,0.0882455,16942.0,16941.0,3.84160151]
[1673042538577,0.0882455,16942.0,16941.0,3.81117674]
[1673042538826,0.0882455,16942.0,16941.0,3.63426024]
[1673042539831,0.0882455,16942.0,16941.0,3.81117674]
[1673042542285,0.0882455,16942.0,16941.0,3.63426024]
[1673042542781,0.0882455,16942.0,16941.0,3.81117674]
[1673042543778,0.0882455,16942.0,16941.0,3.81140887]
[1673042545282,0.0882455,16942.0,16941.0,5.76546772]
[1673042545549,0.0882455,16942.0,16941.0,6.36546772]
[1673042545791,0.0882455,16942.0,16941.0,6.80684569]
[1673042546042,0.0882455,16942.0,16941.0,6.36546772]
[1673042546547,0.0882455,16942.0,16941.0,6.54147094]
[1673042546799,0.0882455,16942.0,16941.0,6.36503271]
[1673042548057,0.08436249,16942.0,16941.0,6.36503271]
[1673042548319,0.0832455,16942.0,16941.0,6.36503271]
[1673042550300,0.0832455,16942.0,16941.0,6.46503271]
[1673042550550,0.0832455,16942.0,16941.0,7.06503271]
[1673042550806,0.0832455,16942.0,16941.0,6.28774651]
[1673042551052,0.0832455,16942.0,16941.0,6.28774348]
[1673042553328,0.0832455,16942.0,16941.0,5.58774348]
[1673042555116,0.0832455,16942.0,16941.0,5.76503271]
[1673042555351,0.0832455,16942.0,16941.0,6.46503271]
[1673042561538,0.0832455,16942.0,16941.0,5.76503271]
[1673042562287,0.0832455,16942.0,16941.0,6.46503271]
[1673042562572,0.0832455,16942.0,16941.0,6.64147094]
[1673042564814,0.0832455,16942.0,16941.0,6.05149517]
[1673042565081,0.0832455,16942.0,16941.0,6.67206437]
[1673042568468,0.0832455,16942.0,16941.0,5.97206437]
[1673042569356,0.0832455,16942.0,16941.0,6.67206437]
[1673042570606,0.0832455,16942.0,16941.0,6.05149517]
[1673042571109,0.0832455,16942.0,16941.0,6.70684873]
[1673042571848,0.0832455,16942.0,16941.0,6.5302127]
[1673042572585,0.08317302,16942.0,16941.0,6.97159067]
[1673042572835,0.08317302,16942.0,16941.0,6.70684873]
[1673042574610,0.08317302,16942.0,16941.0,6.53023999]
[1673042574860,0.08317302,16942.0,16941.0,6.97161796]
[1673042575110,0.08317302,16942.0,16941.0,6.53023999]
[1673042575856,0.08317302,16942.0,16941.0,5.83023999]
[1673042576368,0.08317302,16942.0,16941.0,6.53023999]
[1673042577119,0.08317302,16942.0,16941.0,6.70684873]
[1673042581748,0.08317302,16942.0,16941.0,6.35295712]
[1673042582021,0.08317302,16942.0,16941.0,6.70615082]
[1673042583001,0.08317302,16942.0,16941.0,6.35295712]
[1673042587553,0.08317302,16942.0,16941.0,5.65295712]
[1673042588541,0.08317302,16942.0,16941.0,5.69760356]
[1673042588760,0.08317302,16942.0,16941.0,6.37630334]
[1673042590161,0.08317302,16942.0,16941.0,5.25622559]
[1673042590406,0.08317302,16942.0,16941.0,5.8932159]
[1673042590923,0.6125652,16943.0,16941.0,5.25622559]
[1673042591180,0.6125652,16943.0,16942.0,2.22416663]
[1673042591437,0.6125652,16943.0,16942.0,5.01552349]
[1673042592428,0.6205652,16943.0,16942.0,5.11252349]
[1673042600934,0.6205652,16943.0,16942.0,4.91252349]
[1673042601410,0.6205652,16943.0,16942.0,5.26584927]
[1673042601661,0.6205652,16943.0,16942.0,5.26584954]
[1673042602138,0.6205652,16943.0,16942.0,5.46584954]
[1673042603361,0.6205652,16943.0,16942.0,4.76584954]
[1673042604068,0.6205652,16943.0,16942.0,5.46584954]
[1673042607292,0.0168652,16943.0,16942.0,5.46584954]
[1673042609747,0.0168652,16943.0,16942.0,4.51016463]
[1673042609998,0.0168652,16943.0,16942.0,3.81016463]
[1673042610528,0.0168652,16943.0,16942.0,4.51016463]
[1673042610787,2e-07,16943.0,16942.0,4.51016463]
[1673042612012,2e-07,16943.0,16942.0,4.68476463]
[1673042613490,2e-07,16943.0,16942.0,5.26004909]
[1673042614797,2e-07,16943.0,16942.0,4.07955109]
[1673042615058,2e-07,16943.0,16942.0,5.61338035]
[1673042616340,2e-07,16943.0,16942.0,4.91338035]
[1673042617375,2e-07,16943.0,16942.0,5.61338035]
[1673042619837,2e-07,16943.0,16942.0,5.43878035]
[1673042622664,0.41227809,16943.0,16942.0,3.86127242]
[1673042622940,0.7812782,16943.0,16942.0,2.085998]
[1673042623200,0.7812782,16943.0,16942.0,2.2627444]
[1673042623960,0.7812782,16943.0,16942.0,2.26349684]
[1673042624747,0.7812782,16943.0,16942.0,2.38675044]
[1673042625730,0.1746002,16943.0,16942.0,2.38675044]
[1673042626236,0.1746002,16943.0,16942.0,2.87270065]
[1673042626738,0.1746002,16943.0,16942.0,3.04944705]
[1673042626958,0.1746002,16943.0,16942.0,4.04944705]
[1673042628229,0.1746002,16943.0,16942.0,3.56349684]
[1673042629223,0.1746002,16943.0,16942.0,3.38675044]
[1673042629813,0.7812782,16943.0,16942.0,3.56349684]
[1673042630045,0.1746002,16943.0,16942.0,3.56349684]
[1673042631787,0.7812782,16943.0,16942.0,3.56349684]
[1673042632038,0.1746002,16943.0,16942.0,3.56349684]
[1673042632527,0.7812782,16943.0,16942.0,3.56349684]
[1673042633275,0.1746002,16943.0,16942.0,3.56349684]
[1673042634003,0.1746002,16943.0,16942.0,4.23942564]
[1673042635422,0.7812782,16943.0,16942.0,4.23942564]
[1673042636706,0.7812782,16943.0,16942.0,4.36066545]
[1673042636939,0.1746002,16943.0,16942.0,4.36066545]
[1673042637403,0.1746002,16943.0,16942.0,4.62574187]
[1673042637662,0.1746002,16943.0,16942.0,5.17918397]
[1673042647287,0.1746002,16943.0,16942.0,5.53251523]
[1673042649279,0.1746002,16943.0,16942.0,5.5323642]
[1673042650507,0.25426683,16943.0,16942.0,5.5323642]
[1673042650741,0.25426683,16943.0,16942.0,5.17903294]
[1673042651272,0.25426683,16943.0,16942.0,5.53241228]
[1673042652037,0.07966683,16943.0,16942.0,5.53241228]
[1673042653087,0.07966683,16943.0,16942.0,5.17832858]
[1673042653582,0.07966683,16943.0,16942.0,5.05708877]
[1673042656727,0.07966683,16943.0,16942.0,5.05784121]
[1673042657223,0.07966683,16943.0,16942.0,5.23452902]
[1673042660047,0.07966683,16943.0,16942.0,5.41124429]
[1673042660411,0.07966683,16943.0,16942.0,5.05791303]
[1673042660685,0.07966683,16943.0,16942.0,5.23452902]
[1673042660940,0.07966683,16943.0,16942.0,5.55637646]
[1673042661678,0.07966683,16943.0,16942.0,5.37978246]
[1673042662149,0.07966683,16943.0,16942.0,5.17978246]
[1673042666460,0.07966683,16943.0,16942.0,5.21020723]
[1673042666983,0.07954085,16943.0,16942.0,5.38680123]
[1673042667741,0.07954085,16943.0,16942.0,5.35637646]
[1673042668934,0.07954085,16943.0,16942.0,5.53315444]
[1673042669192,0.07954085,16943.0,16942.0,5.53317821]
[1673042669434,0.07954085,16943.0,16942.0,5.17984695]
[1673042671483,0.07954085,16943.0,16942.0,4.85799951]
[1673042672937,0.07954085,16943.0,16942.0,4.30455741]
[1673042673188,0.68621885,16943.0,16942.0,4.30455741]
[1673042673429,0.68621885,16943.0,16942.0,4.03948099]
[1673042674946,0.07954085,16943.0,16942.0,4.03948099]
[1673042675189,0.07954085,16943.0,16942.0,4.63335812]
[1673042680534,0.07954085,16943.0,16942.0,4.89843454]
[1673042680788,0.07954085,16943.0,16942.0,5.54945997]
[1673042681047,0.07954085,16943.0,16942.0,5.72598948]
[1673042685875,0.07954085,16943.0,16942.0,6.42598948]
[1673042686140,0.07954085,16943.0,16942.0,6.86766681]
[1673042686877,0.07954085,16943.0,16942.0,6.60259039]
[1673042687374,0.07954085,16943.0,16942.0,5.90259039]
[1673042695904,0.07954085,16943.0,16942.0,4.94925913]
[1673042696389,0.07954085,16943.0,16942.0,5.90271795]
[1673042696897,0.07954085,16943.0,16942.0,5.54925913]
[1673042697135,0.07954085,16943.0,16942.0,5.90271578]
[1673042697393,0.07954085,16943.0,16942.0,6.60196334]
[1673042698875,0.07954085,16943.0,16942.0,5.90196334]
[1673042699694,0.07954085,16943.0,16942.0,3.33215741]
[1673042699933,0.07954085,16943.0,16942.0,2.97037684]
[1673042699934,0.86071885,16943.0,16942.0,2.97037684]
[1673042700177,0.25404085,16943.0,16942.0,2.31935141]
[1673042700415,0.25404085,16943.0,16942.0,3.00701198]
[1673042700878,0.25404085,16943.0,16942.0,3.00795028]
[1673042701127,0.25404085,16943.0,16942.0,3.31645028]
[1673042701386,0.24509785,16943.0,16942.0,3.31645028]
[1673042702404,0.24509785,16943.0,16942.0,2.62878971]
[1673042703130,0.24509785,16943.0,16942.0,2.62785141]
[1673042703374,0.24509785,16943.0,16942.0,2.36275068]
[1673042705755,0.24509785,16943.0,16942.0,2.98891696]
[1673042706005,0.24509785,16943.0,16942.0,3.95649976]
[1673042707968,0.24509785,16943.0,16942.0,3.25401769]
[1673042708201,0.85177585,16943.0,16942.0,2.98891696]
[1673042712195,0.24509785,16943.0,16942.0,3.14490533]
[1673042713690,0.85177585,16943.0,16942.0,2.98891696]
[1673042716104,0.85177585,16943.0,16942.0,2.81216428]
[1673042717398,0.24509785,16943.0,16942.0,2.81216428]
[1673042717667,0.24509785,16943.0,16942.0,2.98891696]
[1673042718423,0.24509785,16943.0,16942.0,2.81216428]
[1673042718678,0.24509785,16943.0,16942.0,2.98891696]
[1673042719387,0.24509785,16943.0,16942.0,2.81216428]
[1673042719635,0.85177585,16943.0,16942.0,2.81216428]
[1673042720391,0.24509785,16943.0,16942.0,3.24353738]
[1673042720879,0.24509785,16943.0,16942.0,2.98891696]
[1673042722165,0.85177585,16943.0,16942.0,2.81216428]
[1673042722420,0.84977585,16943.0,16942.0,2.81216428]
[1673042724176,0.84777585,16943.0,16942.0,2.81216428]
[1673042725356,0.24109785,16943.0,16942.0,2.81216428]
[1673042725608,0.23909785,16943.0,16942.0,3.25562265]
[1673042726453,0.23709785,16943.0,16942.0,3.25562265]
[1673042728281,0.23509785,16943.0,16942.0,3.25562265]
[1673042728787,0.23509785,16943.0,16942.0,3.43237533]
[1673042731257,0.23509785,16943.0,16942.0,2.98891696]
[1673042731515,0.23509785,16943.0,16942.0,2.81216428]
[1673042731767,0.84177585,16943.0,16942.0,2.81216428]
[1673042733242,0.23509785,16943.0,16942.0,2.81216428]
[1673042734496,0.23309785,16943.0,16942.0,2.81216428]
[1673042734994,0.23309785,16943.0,16942.0,3.25562265]
[1673042735250,0.23309785,16943.0,16942.0,3.43237533]
[1673042738001,0.23309785,16943.0,16942.0,2.98891696]
[1673042739414,1.01689308,16943.0,16942.0,2.98891696]
[1673042739661,1.01689308,16943.0,16942.0,2.81216428]
[1673042740154,1.28258604,16943.0,16942.0,2.81216428]
[1673042740892,1.28058604,16943.0,16942.0,2.81216428]
[1673042741639,2.59823219,16943.0,16942.0,2.81216428]
[1673042743147,2.59823219,16943.0,16942.0,2.185998]
[1673042743893,2.95179739,16943.0,16942.0,2.185998]
[1673042744397,2.59823219,16943.0,16942.0,2.185998]
[1673042745907,1.97472922,16943.0,16942.0,2.185998]
[1673042746148,1.70903626,16943.0,16942.0,2.185998]
[1673042748372,1.70703626,16943.0,16942.0,2.185998]
[1673042749557,1.97272922,16943.0,16942.0,2.185998]
[1673042749810,1.70703626,16943.0,16942.0,2.185998]
[1673042750826,1.70503626,16943.0,16942.0,2.185998]
[1673042754846,1.52791903,16943.0,16942.0,2.185998]
[1673042755096,1.70503626,16943.0,16942.0,2.185998]
[1673042756263,1.70303626,16943.0,16942.0,2.185998]
[1673042757600,1.52591903,16943.0,16942.0,2.185998]
[1673042758102,0.91924103,16943.0,16942.0,2.185998]
[1673042761627,0.91924103,16943.0,16942.0,3.19605164]
[1673042761860,0.74474103,16943.0,16942.0,3.19605164]
[1673042762864,0.05059785,16943.0,16942.0,3.19605164]
[1673042763126,0.05059785,16943.0,16942.0,3.37280432]
[1673042763428,0.76737991,16943.0,16942.0,3.37280432]
[1673042763651,0.76737991,16943.0,16942.0,3.19605164]
[1673042764155,0.76737991,16943.0,16942.0,2.56014152]
[1673042764416,1.72487514,16943.0,16942.0,2.185998]
[1673042764664,2.68781226,16943.0,16942.0,2.185998]
[1673042765988,2.4221193,16943.0,16942.0,2.185998]
[1673042770807,2.68781226,16943.0,16942.0,2.185998]
[1673042771550,2.4221193,16943.0,16942.0,2.185998]
[1673042773012,2.68781226,16943.0,16942.0,2.185998]
[1673042776190,2.4221193,16943.0,16942.0,2.185998]
[1673042777845,2.68781226,16943.0,16942.0,2.185998]
[1673042779459,2.68681226,16943.0,16942.0,2.185998]
[1673042780884,2.86326023,16943.0,16942.0,2.185998]
[1673042783394,3.04034181,16943.0,16942.0,2.185998]
[1673042783645,2.68677661,16943.0,16942.0,2.185998]
[1673042784791,3.04034181,16943.0,16942.0,2.185998]
[1673042785588,2.86326023,16943.0,16942.0,2.185998]
[1673042786896,2.68956023,16943.0,16942.0,2.185998]
[1673042788922,2.68956023,16943.0,16942.0,1.885998]
[1673042789175,2.68956023,16943.0,16942.0,2.185998]
[1673042789679,2.68956023,16943.0,16942.0,1.885998]
[1673042791260,2.51305326,16943.0,16942.0,2.185998]
[1673042791814,1.90637526,16943.0,16942.0,2.185998]
[1673042792577,2.51305326,16943.0,16942.0,2.185998]
[1673042792868,1.90637526,16943.0,16942.0,2.185998]
[1673042793137,2.51305326,16943.0,16942.0,2.185998]
[1673042794453,2.86661846,16943.0,16942.0,2.185998]
[1673042794697,2.51305326,16943.0,16942.0,2.185998]
[1673042794950,2.25994046,16943.0,16942.0,2.185998]
[1673042795196,2.08288223,16943.0,16942.0,2.185998]
[1673042795624,2.25993543,16943.0,16942.0,2.185998]
[1673042796124,1.90637023,16943.0,16942.0,2.185998]
[1673042797409,2.51304823,16943.0,16942.0,2.185998]
[1673042797915,2.51304823,16943.0,16942.0,2.180998]
[1673042798441,2.68956023,16943.0,16942.0,2.180998]
[1673042799234,2.86662712,16943.0,16942.0,2.180998]
[1673042799494,1.9063837,16943.0,16942.0,2.180998]
[1673042800021,2.5130617,16943.0,16942.0,2.180998]
[1673042800242,2.8666269,16943.0,16942.0,2.180998]
[1673042800786,2.5130617,16943.0,16942.0,2.180998]
[1673042801032,2.8666269,16943.0,16942.0,2.180998]
[1673042801293,2.68956023,16943.0,16942.0,2.180998]
[1673042801793,2.68956023,16943.0,16942.0,1.880998]
[1673042802294,2.68956023,16943.0,16942.0,2.180998]
[1673042802826,2.86588409,16943.0,16942.0,1.880998]
[1673042803794,2.86538409,16943.0,16942.0,1.880998]
[1673042804776,2.86538409,16943.0,16942.0,1.290749]
[1673042809029,2.6889606,16943.0,16942.0,1.590749]
[1673042809233,2.0822826,16943.0,16942.0,1.590749]
[1673042811220,2.0822826,16943.0,16942.0,1.290749]
[1673042811467,2.0822826,16943.0,16942.0,1.590749]
[1673042811722,2.0822826,16943.0,16942.0,1.290749]
[1673042811958,2.6889606,16943.0,16942.0,1.590749]
[1673042812200,2.0822826,16943.0,16942.0,1.590749]
[1673042812693,2.0822826,16943.0,16942.0,1.290749]
[1673042812943,2.0822826,16943.0,16942.0,1.590749]
[1673042813189,2.0822826,16943.0,16942.0,1.290749]
[1673042813424,2.6889606,16943.0,16942.0,1.290749]
[1673042813879,2.0822826,16943.0,16942.0,1.290749]
[1673042814639,2.08229623,16943.0,16942.0,1.590749]
[1673042815640,1.90579939,16943.0,16942.0,2.180998]
[1673042816640,1.20855523,16943.0,16942.0,2.180998]
[1673042817436,1.38505207,16943.0,16942.0,2.180998]
[1673042821575,1.38505207,16943.0,16942.0,2.175553]
[1673042822829,1.38499207,16943.0,16942.0,2.175553]
[1673042823927,1.38499207,16943.0,16942.0,1.585304]
[1673042824179,1.38493207,16943.0,16942.0,1.285304]
[1673042824400,1.38493207,16943.0,16942.0,1.585304]
[1673042824707,1.82694889,16943.0,16942.0,1.285304]
[1673042825216,1.56134193,16943.0,16942.0,1.285304]
[1673042825471,1.8219793,16943.0,16942.0,1.285304]
[1673042826250,1.55634193,16943.0,16942.0,1.285304]
[1673042826505,1.82198056,16943.0,16942.0,1.285304]
[1673042827241,1.55634193,16943.0,16942.0,1.285304]
[1673042827992,1.82197646,16943.0,16942.0,1.285304]
[1673042828253,1.55634193,16943.0,16942.0,1.285304]
[1673042828586,1.55634193,16943.0,16942.0,1.585304]
[1673042828773,1.55634193,16943.0,16942.0,1.285304]
[1673042829005,1.55634193,16943.0,16942.0,1.585304]
[1673042829259,1.55634193,16943.0,16942.0,1.285304]
[1673042829633,1.37995636,16943.0,16942.0,1.285304]
[1673042830177,1.37995636,16943.0,16942.0,1.585304]
[1673042830637,1.37995636,16943.0,16942.0,1.285304]
[1673042830888,1.82197229,16943.0,16942.0,1.285304]
[1673042831393,1.55634193,16943.0,16942.0,1.285304]
[1673042831883,2.16301993,16943.0,16942.0,1.285304]
[1673042832870,2.42343986,16943.0,16942.0,1.276804]
[1673042833854,2.77762072,16943.0,16942.0,1.276804]
[1673042835647,2.42343986,16943.0,16942.0,1.285304]
[1673042838300,2.59803986,16943.0,16942.0,0.686555]
[1673042839610,2.95218988,16943.0,16942.0,0.986555]
[1673042839830,1.99136186,16943.0,16942.0,0.986555]
[1673042840108,2.3455036,16943.0,16942.0,0.986555]
[1673042840618,2.3455036,16943.0,16942.0,0.686555]
[1673042840863,2.3455036,16943.0,16942.0,1.276804]
[1673042841833,2.3455036,16943.0,16942.0,1.576804]
[1673042843344,2.3455036,16943.0,16942.0,1.276804]
[1673042843575,2.3455036,16943.0,16942.0,1.576804]
[1673042844338,2.3455036,16943.0,16942.0,1.276804]
[1673042844823,2.3455036,16943.0,16942.0,1.576804]
[1673042847588,2.3455036,16943.0,16942.0,1.57673618]
[1673042847856,2.3455036,16943.0,16942.0,1.27673618]
[1673042848603,2.9521816,16943.0,16942.0,1.27673618]
[1673042852300,2.3455036,16943.0,16942.0,1.27673618]
[1673042853333,2.9521816,16943.0,16942.0,1.27673618]
[1673042853583,2.59803986,16943.0,16942.0,1.27673618]
[1673042854833,1.99136186,16943.0,16942.0,1.27673618]
[1673042855071,2.34548332,16943.0,16942.0,1.27673618]
[1673042855361,1.99136186,16943.0,16942.0,1.27673618]
[1673042855611,2.34548339,16943.0,16942.0,1.27673618]
[1673042855866,1.99136186,16943.0,16942.0,1.27673618]
[1673042856368,1.99136186,16943.0,16942.0,0.9329161]
[1673042856627,1.73155994,16943.0,16942.0,1.8231651]
[1673042856886,1.73155994,16943.0,16942.0,1.57673618]
[1673042857388,1.73155994,16943.0,16942.0,1.27673618]
[1673042857641,1.73155994,16943.0,16942.0,1.57673618]
[1673042859120,1.73155994,16943.0,16942.0,2.27189523]
[1673042859376,1.82260554,16943.0,16942.0,2.27189523]
[1673042859621,1.82260614,16943.0,16942.0,2.27189523]
[1673042859878,1.55695994,16943.0,16942.0,2.27189523]
[1673042862114,1.55695994,16943.0,16942.0,1.27673618]
[1673042862616,1.55695994,16943.0,16942.0,1.57673618]
[1673042863132,2.17820836,16943.0,16942.0,1.57673618]
[1673042863372,1.82402515,16943.0,16942.0,1.27673618]
[1673042865234,2.1782587,16943.0,16942.0,1.57673618]
[1673042865494,1.82402515,16943.0,16942.0,1.57673618]
[1673042865740,1.82402515,16943.0,16942.0,1.27673618]
[1673042867003,1.82402515,16943.0,16942.0,1.57673618]
[1673042867507,2.1782699,16943.0,16942.0,1.57673618]
[1673042869298,2.1782699,16943.0,16942.0,1.27673618]
[1673042869551,2.1782699,16943.0,16942.0,1.57673618]
[1673042873726,1.55702148,16943.0,16942.0,1.57673618]
[1673042874722,1.38069398,16943.0,16942.0,2.16698518]
[1673042874971,1.38069398,16943.0,16942.0,2.17548518]
[1673042874972,1.55702148,16943.0,16942.0,2.17548518]
[1673042875230,1.38069556,16943.0,16942.0,2.17548518]
[1673042875463,1.82271238,16943.0,16942.0,2.17548518]
[1673042875961,1.38069556,16943.0,16942.0,2.17548518]
[1673042876735,1.82271238,16943.0,16942.0,2.17548518]
[1673042877675,1.38069556,16943.0,16942.0,2.17548518]